[Event "Titled Tuesday Blitz June 20 Late 2023"]
[White "Seemann, Jakub"]
[Black "Licznerski, Lukasz"]
[WhiteFideId "21874697"]
[BlackFideId "1179250"]
[WhiteElo "2364"]
[BlackElo "2453"]
[Result "1-0"]
[Round "7"]
[TimeControl "180+2"]
[Date "2023.06.20"]
[WhiteClock "0:00:10"]
[BlackClock "0:00:00"]
[Board "34"]

1. e4 {[%clk 0:03:00]}  c6 {[%clk 0:02:58]} 2. d4 {[%clk 0:02:59]}  d5 {[%clk 0:02:59]} 3. exd5 {[%clk 0:02:59]}  cxd5 {[%clk 0:03:00]} 4. Bd3 {[%clk 0:02:59]}  Nc6 {[%clk 0:03:00]} 5. c3 {[%clk 0:03:00]}  Nf6 {[%clk 0:03:01]} 6. Nf3 {[%clk 0:03:00]}  Bg4 {[%clk 0:03:00]} 7. h3 {[%clk 0:02:59]}  Bh5 {[%clk 0:03:00]} 8. O-O {[%clk 0:02:59]}  e6 {[%clk 0:02:59]} 9. Bf4 {[%clk 0:02:56]}  Bd6 {[%clk 0:02:59]} 10. Bxd6 {[%clk 0:02:56]}  Qxd6 {[%clk 0:03:00]} 11. Nbd2 {[%clk 0:02:56]}  O-O {[%clk 0:02:57]} 12. a4 {[%clk 0:02:55]}  Rfc8 {[%clk 0:02:54]} 13. a5 {[%clk 0:02:53]}  Bg6 {[%clk 0:02:43]} 14. Bxg6 {[%clk 0:02:52]}  hxg6 {[%clk 0:02:44]} 15. Re1 {[%clk 0:02:52]}  Rab8 {[%clk 0:02:42]} 16. Ne5 {[%clk 0:02:47]}  Qc7 {[%clk 0:02:37]} 17. Nb3 {[%clk 0:02:45]}  Nxe5 {[%clk 0:02:31]} 18. Rxe5 {[%clk 0:02:41]}  b6 {[%clk 0:02:31]} 19. a6 {[%clk 0:02:35]}  Ne4 {[%clk 0:02:18]} 20. Nd2 {[%clk 0:02:28]}  Nxd2 {[%clk 0:02:11]} 21. Qxd2 {[%clk 0:02:29]}  b5 {[%clk 0:02:11]} 22. Re3 {[%clk 0:02:04]}  Qd8 {[%clk 0:01:53]} 23. g3 {[%clk 0:02:02]}  Rb6 {[%clk 0:01:53]} 24. Qe2 {[%clk 0:01:24]}  Rcc6 {[%clk 0:01:47]} 25. h4 {[%clk 0:01:15]}  b4 {[%clk 0:01:32]} 26. h5 {[%clk 0:01:07]}  gxh5 {[%clk 0:01:17]} 27. Qxh5 {[%clk 0:01:06]}  Rxa6 {[%clk 0:01:13]} 28. Rxa6 {[%clk 0:00:49]}  Rxa6 {[%clk 0:01:14]} 29. cxb4 {[%clk 0:00:50]}  Rb6 {[%clk 0:00:52]} 30. g4 {[%clk 0:00:41]}  Qf6 {[%clk 0:00:35]} 31. g5 {[%clk 0:00:23]}  Qxd4 {[%clk 0:00:29]} 32. Rh3 {[%clk 0:00:18]}  g6 {[%clk 0:00:23]} 33. Qh7+ {[%clk 0:00:17]}  Kf8 {[%clk 0:00:24]} 34. Rf3 {[%clk 0:00:14]}  Qg7 {[%clk 0:00:18]} 35. Qh2 {[%clk 0:00:13]}  Qxb2 {[%clk 0:00:16]} 36. Qc7 {[%clk 0:00:12]}  Qa1+ {[%clk 0:00:02]} 37. Kg2 {[%clk 0:00:10]}  f5 {[%clk 0:00:00]} 38. gxf6 {[%clk 0:00:10]} 1-0


[Site "https://www.chess.com"]

[Event "Titled Tuesday Blitz June 20 Late 2023"]
[White "ATM622"]
[Black "Baskakov, Egor"]
[BlackFideId "24197866"]
[WhiteElo "2639"]
[BlackElo "2225"]
[Result "1-0"]
[Round "7"]
[TimeControl "180+2"]
[Date "2023.06.20"]
[WhiteClock "0:00:15"]
[BlackClock "0:00:38"]
[Board "35"]

1. d4 {[%clk 0:03:00]}  Nf6 {[%clk 0:02:59]} 2. c4 {[%clk 0:03:00]}  e6 {[%clk 0:02:59]} 3. g3 {[%clk 0:03:01]}  d5 {[%clk 0:03:00]} 4. Bg2 {[%clk 0:03:01]}  Be7 {[%clk 0:03:00]} 5. Nf3 {[%clk 0:03:01]}  Ne4 {[%clk 0:02:59]} 6. O-O {[%clk 0:03:01]}  O-O {[%clk 0:02:59]} 7. Nbd2 {[%clk 0:03:01]}  f5 {[%clk 0:02:59]} 8. Qc2 {[%clk 0:03:01]}  c6 {[%clk 0:03:00]} 9. b3 {[%clk 0:03:01]}  Bd7 {[%clk 0:02:59]} 10. Bb2 {[%clk 0:03:02]}  Be8 {[%clk 0:03:00]} 11. Ne5 {[%clk 0:03:02]}  Nd7 {[%clk 0:02:58]} 12. f4 {[%clk 0:02:56]}  Nxd2 {[%clk 0:02:58]} 13. Qxd2 {[%clk 0:02:56]}  Nxe5 {[%clk 0:02:58]} 14. fxe5 {[%clk 0:02:54]}  g5 {[%clk 0:02:59]} 15. Rac1 {[%clk 0:02:50]}  g4 {[%clk 0:02:59]} 16. cxd5 {[%clk 0:02:48]}  cxd5 {[%clk 0:02:58]} 17. Rc2 {[%clk 0:02:29]}  Bg5 {[%clk 0:02:54]} 18. Qd3 {[%clk 0:02:24]}  a6 {[%clk 0:02:50]} 19. a4 {[%clk 0:02:23]}  b5 {[%clk 0:02:48]} 20. Bc1 {[%clk 0:02:12]}  bxa4 {[%clk 0:02:47]} 21. Bxg5 {[%clk 0:02:00]}  Qxg5 {[%clk 0:02:48]} 22. bxa4 {[%clk 0:02:00]}  Bxa4 {[%clk 0:02:48]} 23. Rc7 {[%clk 0:02:00]}  Bb5 {[%clk 0:02:48]} 24. Qc2 {[%clk 0:01:58]}  Qe3+ {[%clk 0:02:44]} 25. Kh1 {[%clk 0:01:58]}  Qxd4 {[%clk 0:02:39]} 26. Qc1 {[%clk 0:01:58]}  Qxe5 {[%clk 0:02:30]} 27. Qg5+ {[%clk 0:01:57]}  Kh8 {[%clk 0:02:30]} 28. Qe7 {[%clk 0:01:56]}  Qxc7 {[%clk 0:02:14]} 29. Qxc7 {[%clk 0:01:57]}  Kg8 {[%clk 0:02:07]} 30. Qe5 {[%clk 0:01:50]}  Rfe8 {[%clk 0:01:50]} 31. Rc1 {[%clk 0:01:48]}  Ra7 {[%clk 0:01:42]} 32. Bxd5 {[%clk 0:01:46]}  exd5 {[%clk 0:01:39]} 33. Qxd5+ {[%clk 0:01:44]}  Rf7 {[%clk 0:01:32]} 34. Rc7 {[%clk 0:01:34]}  Rf8 {[%clk 0:01:32]} 35. h4 {[%clk 0:00:39]}  gxh3 {[%clk 0:01:26]} 36. Kh2 {[%clk 0:00:35]}  Bxe2 {[%clk 0:01:21]} 37. Kxh3 {[%clk 0:00:35]}  Bh5 {[%clk 0:01:02]} 38. Kh4 {[%clk 0:00:33]}  Bg6 {[%clk 0:01:02]} 39. Kg5 {[%clk 0:00:32]}  Kg7 {[%clk 0:01:01]} 40. Qe5+ {[%clk 0:00:30]}  Kg8 {[%clk 0:01:01]} 41. Kh6 {[%clk 0:00:27]}  Rxc7 {[%clk 0:00:45]} 42. Qxc7 {[%clk 0:00:28]}  Rf7 {[%clk 0:00:45]} 43. Qd8+ {[%clk 0:00:25]}  Rf8 {[%clk 0:00:45]} 44. Qd4 {[%clk 0:00:22]}  Kf7 {[%clk 0:00:40]} 45. Qd7+ {[%clk 0:00:19]}  Kf6 {[%clk 0:00:40]} 46. Qg7+ {[%clk 0:00:19]}  Ke6 {[%clk 0:00:38]} 47. Qxf8 {[%clk 0:00:19]}  Ke5 {[%clk 0:00:37]} 48. Qb4 {[%clk 0:00:18]}  Kd5 {[%clk 0:00:37]} 49. Qa5+ {[%clk 0:00:18]}  Ke4 {[%clk 0:00:37]} 50. Qxa6 {[%clk 0:00:19]}  Kf3 {[%clk 0:00:38]} 51. Qd6 {[%clk 0:00:18]}  Kg4 {[%clk 0:00:38]} 52. Qf4+ {[%clk 0:00:18]}  Kh3 {[%clk 0:00:39]} 53. Kg5 {[%clk 0:00:15]}  Kg2 {[%clk 0:00:38]} 54. Kh4 {[%clk 0:00:15]} 1-0


[Site "https://www.chess.com"]

[Event "Titled Tuesday Blitz June 20 Late 2023"]
[White "TimGrutter03"]
[Black "Santos Ruiz, Miguel"]
[BlackFideId "22291482"]
[WhiteElo "2618"]
[BlackElo "2499"]
[Result "0-1"]
[Round "7"]
[TimeControl "180+2"]
[Date "2023.06.20"]
[WhiteClock "0:00:00"]
[BlackClock "0:00:05"]
[Board "38"]

1. d4 {[%clk 0:03:00]}  Nf6 {[%clk 0:02:57]} 2. Nc3 {[%clk 0:03:01]}  d5 {[%clk 0:02:57]} 3. Bf4 {[%clk 0:03:00]}  c5 {[%clk 0:02:53]} 4. e4 {[%clk 0:02:53]}  cxd4 {[%clk 0:02:50]} 5. Qxd4 {[%clk 0:02:51]}  Nc6 {[%clk 0:02:50]} 6. Bb5 {[%clk 0:02:50]}  Bd7 {[%clk 0:02:49]} 7. Bxc6 {[%clk 0:02:49]}  Bxc6 {[%clk 0:02:50]} 8. e5 {[%clk 0:02:44]}  Nd7 {[%clk 0:02:50]} 9. e6 {[%clk 0:02:43]}  fxe6 {[%clk 0:02:49]} 10. Nf3 {[%clk 0:02:37]}  Qb6 {[%clk 0:02:49]} 11. Qxb6 {[%clk 0:02:31]}  Nxb6 {[%clk 0:02:29]} 12. O-O {[%clk 0:02:24]}  h6 {[%clk 0:02:22]} 13. h4 {[%clk 0:02:20]}  g6 {[%clk 0:02:15]} 14. Rfe1 {[%clk 0:02:18]}  Bd7 {[%clk 0:02:07]} 15. Ne5 {[%clk 0:02:07]}  Rg8 {[%clk 0:02:04]} 16. Nxd7 {[%clk 0:01:49]}  Kxd7 {[%clk 0:02:03]} 17. Nb5 {[%clk 0:01:50]}  Bg7 {[%clk 0:01:45]} 18. c3 {[%clk 0:01:44]}  Nc4 {[%clk 0:00:51]} 19. Nc7 {[%clk 0:01:00]}  e5 {[%clk 0:00:50]} 20. Nxa8 {[%clk 0:00:48]}  exf4 {[%clk 0:00:50]} 21. Rad1 {[%clk 0:00:41]}  Rxa8 {[%clk 0:00:27]} 22. Rxd5+ {[%clk 0:00:41]}  Nd6 {[%clk 0:00:27]} 23. c4 {[%clk 0:00:33]}  b6 {[%clk 0:00:25]} 24. b4 {[%clk 0:00:33]}  Bc3 {[%clk 0:00:12]} 25. Rb1 {[%clk 0:00:29]}  Rc8 {[%clk 0:00:06]} 26. c5 {[%clk 0:00:18]}  bxc5 {[%clk 0:00:06]} 27. bxc5 {[%clk 0:00:19]}  Ke6 {[%clk 0:00:07]} 28. Rbd1 {[%clk 0:00:10]}  Nf5 {[%clk 0:00:07]} 29. h5 {[%clk 0:00:06]}  g5 {[%clk 0:00:06]} 30. R5d3 {[%clk 0:00:05]}  Bb4 {[%clk 0:00:05]} 31. Re1+ {[%clk 0:00:04]}  Kf6 {[%clk 0:00:05]} 32. Rb3 {[%clk 0:00:00]}  Bxe1 {[%clk 0:00:05]} 0-1


[Site "https://www.chess.com"]

[Event "Titled Tuesday Blitz June 20 Late 2023"]
[White "Mahdavi, Reza"]
[Black "Moral Garcia, Serafin"]
[WhiteFideId "12595926"]
[BlackFideId "2201925"]
[WhiteElo "2395"]
[BlackElo "2274"]
[Result "1-0"]
[Round "7"]
[TimeControl "180+2"]
[Date "2023.06.20"]
[WhiteClock "0:00:02"]
[BlackClock "0:00:00"]
[Board "39"]

1. e4 {[%clk 0:02:33]}  e5 {[%clk 0:02:58]} 2. f4 {[%clk 0:02:32]}  d5 {[%clk 0:02:56]} 3. exd5 {[%clk 0:02:30]}  e4 {[%clk 0:02:57]} 4. d3 {[%clk 0:02:26]}  Nf6 {[%clk 0:02:54]} 5. dxe4 {[%clk 0:02:25]}  Nxe4 {[%clk 0:02:53]} 6. Nf3 {[%clk 0:02:26]}  Bc5 {[%clk 0:02:51]} 7. Qe2 {[%clk 0:02:25]}  f5 {[%clk 0:02:50]} 8. Nc3 {[%clk 0:02:18]}  O-O {[%clk 0:02:47]} 9. Nxe4 {[%clk 0:02:18]}  fxe4 {[%clk 0:02:45]} 10. Qxe4 {[%clk 0:02:19]}  Bf5 {[%clk 0:02:37]} 11. Qc4 {[%clk 0:02:19]}  Nd7 {[%clk 0:02:33]} 12. Bd2 {[%clk 0:02:15]}  Re8+ {[%clk 0:02:13]} 13. Be2 {[%clk 0:02:05]}  Re4 {[%clk 0:02:09]} 14. Qb3 {[%clk 0:02:01]}  Qe8 {[%clk 0:02:01]} 15. d6+ {[%clk 0:01:34]}  Kh8 {[%clk 0:01:58]} 16. O-O-O {[%clk 0:01:27]}  Rxe2 {[%clk 0:01:54]} 17. Ng5 {[%clk 0:01:23]}  h6 {[%clk 0:01:46]} 18. Nf7+ {[%clk 0:01:03]}  Kh7 {[%clk 0:01:43]} 19. dxc7 {[%clk 0:01:02]}  Qe6 {[%clk 0:01:01]} 20. Qxe6 {[%clk 0:00:45]}  Bxe6 {[%clk 0:01:00]} 21. Nd8 {[%clk 0:00:45]}  Bxa2 {[%clk 0:00:52]} 22. Rhe1 {[%clk 0:00:39]}  Bc4 {[%clk 0:00:42]} 23. Rxe2 {[%clk 0:00:37]}  Bxe2 {[%clk 0:00:42]} 24. Re1 {[%clk 0:00:37]}  Bb5 {[%clk 0:00:37]} 25. Nxb7 {[%clk 0:00:28]}  Rc8 {[%clk 0:00:28]} 26. Ba5 {[%clk 0:00:29]}  Bb6 {[%clk 0:00:27]} 27. Bxb6 {[%clk 0:00:29]}  axb6 {[%clk 0:00:26]} 28. Nd6 {[%clk 0:00:30]}  Rxc7 {[%clk 0:00:24]} 29. Nxb5 {[%clk 0:00:31]}  Rc5 {[%clk 0:00:25]} 30. Nd4 {[%clk 0:00:31]}  Rc4 {[%clk 0:00:24]} 31. c3 {[%clk 0:00:32]}  Nf6 {[%clk 0:00:24]} 32. Kc2 {[%clk 0:00:32]}  Rc5 {[%clk 0:00:21]} 33. Re7 {[%clk 0:00:31]}  Nd5 {[%clk 0:00:21]} 34. Re4 {[%clk 0:00:27]}  Nf6 {[%clk 0:00:20]} 35. Re5 {[%clk 0:00:27]}  Rc8 {[%clk 0:00:19]} 36. g3 {[%clk 0:00:26]}  Ng4 {[%clk 0:00:19]} 37. Re2 {[%clk 0:00:26]}  h5 {[%clk 0:00:18]} 38. Kd3 {[%clk 0:00:26]}  Nf6 {[%clk 0:00:19]} 39. Ne6 {[%clk 0:00:24]}  Ra8 {[%clk 0:00:18]} 40. Nd4 {[%clk 0:00:23]}  Kg6 {[%clk 0:00:18]} 41. Re7 {[%clk 0:00:23]}  Ng4 {[%clk 0:00:18]} 42. Re6+ {[%clk 0:00:23]}  Kf7 {[%clk 0:00:17]} 43. Rxb6 {[%clk 0:00:21]}  Nxh2 {[%clk 0:00:17]} 44. Rb7+ {[%clk 0:00:21]}  Kf6 {[%clk 0:00:17]} 45. Rb6+ {[%clk 0:00:19]}  Kf7 {[%clk 0:00:18]} 46. Nc6 {[%clk 0:00:20]}  Ra1 {[%clk 0:00:17]} 47. Ne5+ {[%clk 0:00:20]}  Kf8 {[%clk 0:00:16]} 48. Ke4 {[%clk 0:00:19]}  Nf1 {[%clk 0:00:15]} 49. Kf5 {[%clk 0:00:18]}  Nxg3+ {[%clk 0:00:14]} 50. Ke6 {[%clk 0:00:16]}  Kg8 {[%clk 0:00:15]} 51. c4 {[%clk 0:00:13]}  h4 {[%clk 0:00:14]} 52. c5 {[%clk 0:00:12]}  h3 {[%clk 0:00:14]} 53. c6 {[%clk 0:00:12]}  h2 {[%clk 0:00:12]} 54. c7 {[%clk 0:00:13]}  Rc1 {[%clk 0:00:12]} 55. Rc6 {[%clk 0:00:06]}  Rxc6+ {[%clk 0:00:08]} 56. Nxc6 {[%clk 0:00:07]}  h1=Q {[%clk 0:00:09]} 57. c8=Q+ {[%clk 0:00:07]}  Kh7 {[%clk 0:00:09]} 58. Ne7 {[%clk 0:00:07]}  Qe4+ {[%clk 0:00:08]} 59. Kd7 {[%clk 0:00:07]}  Qa4+ {[%clk 0:00:04]} 60. Kd8 {[%clk 0:00:06]}  Qxf4 {[%clk 0:00:04]} 61. Qh3+ {[%clk 0:00:04]}  Qh6 {[%clk 0:00:02]} 62. Qxg3 {[%clk 0:00:05]}  Qb6+ {[%clk 0:00:02]} 63. Ke8 {[%clk 0:00:04]}  Qb5+ {[%clk 0:00:00]} 64. Kf8 {[%clk 0:00:02]} 1-0


[Site "https://www.chess.com"]

[Event "Titled Tuesday Blitz June 20 Late 2023"]
[White "Lin, Dachey"]
[Black "Ingebretsen, Jens E"]
[WhiteFideId "2029650"]
[BlackFideId "1522965"]
[WhiteElo "2313"]
[BlackElo "2213"]
[Result "1-0"]
[Round "7"]
[TimeControl "180+2"]
[Date "2023.06.20"]
[WhiteClock "0:00:39"]
[BlackClock "0:00:45"]
[Board "40"]

1. g4 {[%clk 0:03:00]}  d5 {[%clk 0:02:59]} 2. Bg2 {[%clk 0:02:59]}  Bxg4 {[%clk 0:02:57]} 3. c4 {[%clk 0:02:42]}  c6 {[%clk 0:02:49]} 4. Qb3 {[%clk 0:02:41]}  Qc7 {[%clk 0:02:36]} 5. cxd5 {[%clk 0:02:40]}  Nf6 {[%clk 0:02:36]} 6. Nc3 {[%clk 0:02:41]}  a6 {[%clk 0:02:17]} 7. h3 {[%clk 0:02:33]}  Bd7 {[%clk 0:02:12]} 8. d4 {[%clk 0:02:27]}  e6 {[%clk 0:02:03]} 9. dxe6 {[%clk 0:01:46]}  Bxe6 {[%clk 0:02:04]} 10. Qc2 {[%clk 0:01:47]}  Bb4 {[%clk 0:01:52]} 11. e4 {[%clk 0:01:46]}  Nbd7 {[%clk 0:01:46]} 12. Ne2 {[%clk 0:01:44]}  O-O-O {[%clk 0:01:37]} 13. Be3 {[%clk 0:01:43]}  Nb6 {[%clk 0:01:30]} 14. a3 {[%clk 0:01:09]}  Be7 {[%clk 0:01:23]} 15. Bf4 {[%clk 0:00:56]}  Qd7 {[%clk 0:01:23]} 16. d5 {[%clk 0:00:57]}  Nfxd5 {[%clk 0:01:15]} 17. exd5 {[%clk 0:00:57]}  Nxd5 {[%clk 0:01:15]} 18. Bxd5 {[%clk 0:00:39]}  Bxd5 {[%clk 0:00:45]} 19. Na4 {[%clk 0:00:39]} 1-0


[Site "https://www.chess.com"]

[Event "Titled Tuesday Blitz June 20 Late 2023"]
[White "Tristan, Leonardo"]
[Black "Bjelobrk, Igor"]
[WhiteFideId "113816"]
[BlackFideId "4300726"]
[WhiteElo "2461"]
[BlackElo "2319"]
[Result "1-0"]
[Round "7"]
[TimeControl "180+2"]
[Date "2023.06.20"]
[WhiteClock "0:00:08"]
[BlackClock "0:00:00"]
[Board "41"]

1. d4 {[%clk 0:03:00]}  e6 {[%clk 0:02:59]} 2. Nf3 {[%clk 0:03:00]}  c5 {[%clk 0:02:58]} 3. c3 {[%clk 0:03:01]}  Nc6 {[%clk 0:02:51]} 4. Bf4 {[%clk 0:03:00]}  Qb6 {[%clk 0:02:51]} 5. Qb3 {[%clk 0:02:23]}  Qxb3 {[%clk 0:02:49]} 6. axb3 {[%clk 0:02:23]}  cxd4 {[%clk 0:02:49]} 7. Nxd4 {[%clk 0:02:13]}  Nxd4 {[%clk 0:02:48]} 8. cxd4 {[%clk 0:02:14]}  d5 {[%clk 0:02:48]} 9. Nc3 {[%clk 0:02:14]}  Bb4 {[%clk 0:02:45]} 10. Bd2 {[%clk 0:02:01]}  Ne7 {[%clk 0:02:41]} 11. Nb5 {[%clk 0:01:59]}  Bxd2+ {[%clk 0:02:40]} 12. Kxd2 {[%clk 0:02:00]}  O-O {[%clk 0:02:35]} 13. Rxa7 {[%clk 0:01:41]}  Rxa7 {[%clk 0:02:34]} 14. Nxa7 {[%clk 0:01:42]}  Bd7 {[%clk 0:02:34]} 15. e3 {[%clk 0:01:43]}  Ra8 {[%clk 0:02:25]} 16. Nb5 {[%clk 0:01:43]}  Ra1 {[%clk 0:02:24]} 17. Nc3 {[%clk 0:01:42]}  b5 {[%clk 0:01:40]} 18. g4 {[%clk 0:01:24]}  b4 {[%clk 0:01:39]} 19. Na4 {[%clk 0:00:57]}  Bxa4 {[%clk 0:01:20]} 20. bxa4 {[%clk 0:00:58]}  Rxa4 {[%clk 0:01:17]} 21. Kc2 {[%clk 0:00:59]}  Ra8 {[%clk 0:00:54]} 22. Kb3 {[%clk 0:00:48]}  Rb8 {[%clk 0:00:54]} 23. Bd3 {[%clk 0:00:46]}  Nc6 {[%clk 0:00:38]} 24. Ra1 {[%clk 0:00:46]}  Kf8 {[%clk 0:00:18]} 25. Ra6 {[%clk 0:00:46]}  Ne7 {[%clk 0:00:16]} 26. Ra5 {[%clk 0:00:37]}  Nc6 {[%clk 0:00:11]} 27. Rb5 {[%clk 0:00:31]}  Rc8 {[%clk 0:00:10]} 28. Rb6 {[%clk 0:00:26]}  Ke7 {[%clk 0:00:08]} 29. Bb5 {[%clk 0:00:19]}  Nd8 {[%clk 0:00:05]} 30. Ra6 {[%clk 0:00:13]}  Rc1 {[%clk 0:00:05]} 31. Ra7+ {[%clk 0:00:13]}  Kf6 {[%clk 0:00:04]} 32. Rd7 {[%clk 0:00:12]}  Nc6 {[%clk 0:00:02]} 33. Rd6 {[%clk 0:00:07]}  Na5+ {[%clk 0:00:01]} 34. Kxb4 {[%clk 0:00:08]}  Nc4 {[%clk 0:00:02]} 35. Rc6 {[%clk 0:00:08]}  Rb1 {[%clk 0:00:02]} 36. b3 {[%clk 0:00:08]}  Nd2 {[%clk 0:00:01]} 37. Rc3 {[%clk 0:00:08]}  Nf1 {[%clk 0:00:00]} 38. Bxf1 {[%clk 0:00:08]} 1-0


[Site "https://www.chess.com"]

[Event "Titled Tuesday Blitz June 20 Late 2023"]
[White "Velikanov, Alexander"]
[Black "Sharan, Rao"]
[WhiteFideId "2039290"]
[BlackFideId "5073464"]
[WhiteElo "2259"]
[BlackElo "2149"]
[Result "1-0"]
[Round "7"]
[TimeControl "180+2"]
[Date "2023.06.20"]
[WhiteClock "0:01:54"]
[BlackClock "0:02:00"]
[Board "43"]

1. Nf3 {[%clk 0:03:00]}  Nf6 {[%clk 0:02:58]} 2. c4 {[%clk 0:03:01]}  b6 {[%clk 0:02:56]} 3. g3 {[%clk 0:02:59]}  Bb7 {[%clk 0:02:56]} 4. Bg2 {[%clk 0:03:00]}  e6 {[%clk 0:02:56]} 5. O-O {[%clk 0:02:59]}  Be7 {[%clk 0:02:57]} 6. d4 {[%clk 0:02:59]}  O-O {[%clk 0:02:56]} 7. d5 {[%clk 0:02:59]}  exd5 {[%clk 0:02:57]} 8. Nh4 {[%clk 0:03:00]}  c6 {[%clk 0:02:57]} 9. cxd5 {[%clk 0:03:00]}  Nxd5 {[%clk 0:02:56]} 10. Nf5 {[%clk 0:02:50]}  Re8 {[%clk 0:02:57]} 11. e4 {[%clk 0:02:45]}  Nc7 {[%clk 0:02:57]} 12. Nc3 {[%clk 0:02:42]}  Bf8 {[%clk 0:02:55]} 13. Bf4 {[%clk 0:02:37]}  Nba6 {[%clk 0:02:54]} 14. Bd6 {[%clk 0:02:37]}  Ne6 {[%clk 0:02:47]} 15. e5 {[%clk 0:02:32]}  Qc8 {[%clk 0:02:42]} 16. Ne4 {[%clk 0:02:23]}  Qd8 {[%clk 0:02:36]} 17. Qg4 {[%clk 0:02:08]}  Bxd6 {[%clk 0:02:23]} 18. Nf6+ {[%clk 0:01:56]}  Kh8 {[%clk 0:02:05]} 19. Nxd6 {[%clk 0:01:55]}  gxf6 {[%clk 0:02:00]} 20. Nxf7# {[%clk 0:01:54]} 1-0


[Site "https://www.chess.com"]

[Event "Titled Tuesday Blitz June 20 Late 2023"]
[White "Sun, Rick"]
[Black "Taranenko, Evgueniy"]
[WhiteFideId "30909481"]
[BlackFideId "14122138"]
[WhiteElo "2169"]
[BlackElo "2101"]
[Result "0-1"]
[Round "7"]
[TimeControl "180+2"]
[Date "2023.06.20"]
[WhiteClock "0:00:01"]
[BlackClock "0:00:50"]
[Board "49"]

1. e4 {[%clk 0:03:00]}  e6 {[%clk 0:02:59]} 2. d4 {[%clk 0:03:01]}  d5 {[%clk 0:02:59]} 3. exd5 {[%clk 0:03:01]}  exd5 {[%clk 0:02:59]} 4. Nf3 {[%clk 0:03:02]}  Nf6 {[%clk 0:03:00]} 5. Bd3 {[%clk 0:03:03]}  Bd6 {[%clk 0:03:00]} 6. O-O {[%clk 0:03:03]}  O-O {[%clk 0:03:00]} 7. h3 {[%clk 0:03:04]}  c6 {[%clk 0:02:58]} 8. Nbd2 {[%clk 0:03:02]}  Nbd7 {[%clk 0:02:58]} 9. Re1 {[%clk 0:03:01]}  Re8 {[%clk 0:02:58]} 10. Nf1 {[%clk 0:03:02]}  Ne4 {[%clk 0:02:56]} 11. c3 {[%clk 0:02:56]}  Ndf6 {[%clk 0:02:51]} 12. Ng5 {[%clk 0:02:47]}  h6 {[%clk 0:02:38]} 13. Nxe4 {[%clk 0:02:38]}  dxe4 {[%clk 0:02:38]} 14. Bc2 {[%clk 0:02:38]}  Bc7 {[%clk 0:02:28]} 15. Be3 {[%clk 0:02:06]}  Nd5 {[%clk 0:02:17]} 16. Bd2 {[%clk 0:02:03]}  f5 {[%clk 0:02:12]} 17. Qh5 {[%clk 0:01:35]}  Be6 {[%clk 0:02:00]} 18. Bxh6 {[%clk 0:00:27]}  gxh6 {[%clk 0:01:48]} 19. Qg6+ {[%clk 0:00:27]}  Kf8 {[%clk 0:01:48]} 20. Qxh6+ {[%clk 0:00:24]}  Ke7 {[%clk 0:01:48]} 21. f3 {[%clk 0:00:20]}  Bf4 {[%clk 0:01:22]} 22. Qg7+ {[%clk 0:00:19]}  Kd6 {[%clk 0:01:21]} 23. fxe4 {[%clk 0:00:20]}  fxe4 {[%clk 0:01:22]} 24. Rxe4 {[%clk 0:00:19]}  Qg5 {[%clk 0:01:11]} 25. Qxb7 {[%clk 0:00:13]}  Bxh3 {[%clk 0:01:04]} 26. g3 {[%clk 0:00:01]}  Bxf1 {[%clk 0:01:00]} 27. Kxf1 {[%clk 0:00:01]}  Qxg3 {[%clk 0:00:52]} 28. c4 {[%clk 0:00:01]}  Qf3+ {[%clk 0:00:50]} 29. Kg1 {[%clk 0:00:02]}  Rg8+ {[%clk 0:00:50]} 30. Qg7 {[%clk 0:00:01]}  Rxg7# {[%clk 0:00:50]} 0-1


[Site "https://www.chess.com"]

[Event "Titled Tuesday Blitz June 20 Late 2023"]
[White "Pinero Rodriguez, Carlos Jose"]
[Black "Zhigalko, Sergei"]
[WhiteFideId "3901726"]
[BlackFideId "13502956"]
[WhiteElo "2146"]
[BlackElo "2626"]
[Result "1-0"]
[Round "7"]
[TimeControl "180+2"]
[Date "2023.06.20"]
[WhiteClock "0:00:17"]
[BlackClock "0:00:00"]
[Board "50"]

1. b3 {[%clk 0:03:00]}  e5 {[%clk 0:02:59]} 2. Bb2 {[%clk 0:03:01]}  e4 {[%clk 0:02:59]} 3. c4 {[%clk 0:03:00]}  Nf6 {[%clk 0:02:59]} 4. a3 {[%clk 0:02:58]}  Nc6 {[%clk 0:02:57]} 5. e3 {[%clk 0:02:57]}  d5 {[%clk 0:02:51]} 6. cxd5 {[%clk 0:02:57]}  Qxd5 {[%clk 0:02:51]} 7. Nc3 {[%clk 0:02:55]}  Qg5 {[%clk 0:02:27]} 8. f4 {[%clk 0:02:52]}  Qg6 {[%clk 0:02:13]} 9. Qc2 {[%clk 0:02:48]}  h5 {[%clk 0:02:03]} 10. Nh3 {[%clk 0:02:40]}  Bf5 {[%clk 0:01:50]} 11. Ng5 {[%clk 0:02:36]}  O-O-O {[%clk 0:01:49]} 12. Bc4 {[%clk 0:02:35]}  Rd7 {[%clk 0:01:49]} 13. b4 {[%clk 0:02:27]}  Nd8 {[%clk 0:01:16]} 14. O-O-O {[%clk 0:02:25]}  Be7 {[%clk 0:01:15]} 15. Qb3 {[%clk 0:02:23]}  Rf8 {[%clk 0:01:08]} 16. Nb5 {[%clk 0:02:16]}  Kb8 {[%clk 0:00:52]} 17. Nd4 {[%clk 0:02:16]}  Bg4 {[%clk 0:00:49]} 18. Rde1 {[%clk 0:02:15]}  Rd6 {[%clk 0:00:48]} 19. h3 {[%clk 0:02:13]}  Bd7 {[%clk 0:00:48]} 20. Kb1 {[%clk 0:02:11]}  Ne8 {[%clk 0:00:36]} 21. g4 {[%clk 0:01:50]}  hxg4 {[%clk 0:00:32]} 22. hxg4 {[%clk 0:01:51]}  Bxg4 {[%clk 0:00:32]} 23. Reg1 {[%clk 0:01:51]}  f5 {[%clk 0:00:32]} 24. Nge6 {[%clk 0:01:39]}  Nxe6 {[%clk 0:00:30]} 25. Nxe6 {[%clk 0:01:40]}  Rxe6 {[%clk 0:00:19]} 26. Bxe6 {[%clk 0:01:40]}  Bf6 {[%clk 0:00:15]} 27. Qd5 {[%clk 0:01:30]}  Nd6 {[%clk 0:00:14]} 28. Qb3 {[%clk 0:01:11]}  a6 {[%clk 0:00:13]} 29. Rc1 {[%clk 0:01:04]}  Rd8 {[%clk 0:00:11]} 30. Rhg1 {[%clk 0:00:50]}  Bxb2 {[%clk 0:00:08]} 31. Kxb2 {[%clk 0:00:49]}  Qf6+ {[%clk 0:00:08]} 32. Kb1 {[%clk 0:00:45]}  Nb5 {[%clk 0:00:07]} 33. Bc4 {[%clk 0:00:38]}  Rxd2 {[%clk 0:00:04]} 34. Bxb5 {[%clk 0:00:33]}  axb5 {[%clk 0:00:05]} 35. Qc3 {[%clk 0:00:31]}  Qd6 {[%clk 0:00:04]} 36. Rc2 {[%clk 0:00:29]}  Rd3 {[%clk 0:00:04]} 37. Qc5 {[%clk 0:00:22]}  Qxc5 {[%clk 0:00:02]} 38. Rxc5 {[%clk 0:00:21]}  c6 {[%clk 0:00:02]} 39. Re1 {[%clk 0:00:20]}  Rxa3 {[%clk 0:00:02]} 40. Kb2 {[%clk 0:00:19]}  Rd3 {[%clk 0:00:02]} 41. Kc2 {[%clk 0:00:20]}  Kc7 {[%clk 0:00:02]} 42. Re5 {[%clk 0:00:20]}  Kd7 {[%clk 0:00:02]} 43. Rc5 {[%clk 0:00:19]}  Ra3 {[%clk 0:00:02]} 44. Kb2 {[%clk 0:00:18]}  Kc7 {[%clk 0:00:00]} 45. Kxa3 {[%clk 0:00:17]} 1-0


[Site "https://www.chess.com"]